fUST/lending_fUST_20250723
["ID","MTS","AMOUNT","RATE_DAILY","PERIOD"]
[374272875,1753261851671,-170.6692493,0.00023695,2]
[374272876,1753261851680,-15514.36,0.000237,2]
[374272877,1753261851690,-3498.02426848,0.0002376,2]
[374272878,1753261851698,-151.0,0.000238,5]
[374272879,1753261851708,-466.593558,0.00023831,7]
[374272880,1753261851717,-466.593558,0.00023831,7]
[374272881,1753261851726,-713.22,0.00023835,2]
[374272882,1753261851735,-598.54,0.00023835,2]
[374272883,1753261851744,-460.0,0.00023835,2]
[374272884,1753261851753,-2601.93,0.00023835,2]
[374272885,1753261851763,-460.0,0.00023835,2]
[374272886,1753261851772,-912.03,0.00023835,2]
[374272887,1753261851782,-935.55,0.00023835,2]
[374272888,1753261851791,-460.0,0.00023835,2]
[374272889,1753261851800,-460.0,0.00023835,2]
[374272890,1753261851810,-1380.08,0.00023835,2]
[374272891,1753261851820,-1381.88,0.00023835,2]
[374272892,1753261851830,-472.92,0.00023835,2]
[374272893,1753261851839,-1043.81,0.00023835,2]
[374272894,1753261851848,-2133.29,0.00023835,2]
[374272895,1753261851858,-2580.6,0.00023835,2]
[374272896,1753261851868,-1283.57,0.00023835,2]
[374272897,1753261851878,-969.48,0.00023835,2]
[374272898,1753261851888,-929.2,0.00023835,2]
[374272899,1753261851897,-325.026,0.00023837,2]
[374272900,1753261851907,-151.0,0.00023854,7]
[374272901,1753261851916,-151.0,0.00023854,7]
[374272902,1753261851928,-151.0,0.00023854,7]
[374272903,1753261851937,-957.765318,0.00023854,7]
[374272904,1753261851946,-957.765318,0.00023854,7]
[374272905,1753261851956,-3498.02426848,0.00023934,2]
[374272906,1753261851965,-168.0,0.0002395,2]
[374272907,1753261851975,-445.0,0.00023957,2]
[374272908,1753261851984,-231.11583447,0.00024,7]
[374272909,1753261851993,-151.0,0.00024,7]
[374272910,1753261852003,-840.06856235,0.00024,7]
[374272911,1753261852013,-840.06856235,0.00024,10]
[374272912,1753261852022,-526.15909479,0.00024,10]
[374272913,1753261852031,-232.846416,0.00024009,8]
[374272914,1753261852041,-506.80993914,0.00024027,30]
[374272915,1753261852050,-168.0,0.00024035,2]
[374272916,1753261852059,-500.0,0.00024037,2]
[374272917,1753261852068,-151.0,0.00024109,7]
[374272918,1753261852077,-713.22,0.00024109,2]
[374272919,1753261852087,-598.54,0.00024109,2]
[374272920,1753261852096,-460.0,0.00024109,2]
[374272921,1753261852106,-2601.93,0.00024109,2]
[374272922,1753261852118,-460.0,0.00024109,2]
[374272923,1753261852128,-912.03,0.00024109,2]
[374272924,1753261852138,-500.0,0.00024109,2]
[374272925,1753261852147,-935.55,0.00024109,2]
[374272926,1753261852156,-460.0,0.00024109,2]
[374272927,1753261852166,-460.0,0.00024109,2]
[374272928,1753261852176,-1380.08,0.00024109,2]
[374272929,1753261852186,-1381.88,0.00024109,2]
[374272930,1753261852197,-472.92,0.00024109,2]
[374272931,1753261852206,-1043.81,0.00024109,2]
[374272932,1753261852216,-2133.29,0.00024109,2]
[374272933,1753261852229,-2580.6,0.00024109,2]
[374272934,1753261852239,-1283.57,0.00024109,2]
[374272935,1753261852248,-969.48,0.00024109,2]
[374272936,1753261852257,-929.2,0.00024109,2]
[374272937,1753261852267,-153.0,0.0002411,2]
[374272938,1753261852276,-153.0,0.0002411,2]
[374272939,1753261852286,-153.0,0.0002411,2]
[374272940,1753261852296,-1911.1649041,0.0002411,2]
[374272941,1753261852306,-7637.01495677,0.0002411,2]
[374272942,1753261852315,-760.0,0.00024121,2]
[374272943,1753261852325,-3498.02426851,0.00024151,2]
[374272944,1753261852334,-169.0,0.00024164,7]
[374272945,1753261852345,-196.725609,0.000242,7]
[374272946,1753261852355,-196.725609,0.000242,7]
[374272947,1753261852364,-151.0,0.000242,7]
[374272948,1753261852373,-151.0,0.000242,9]
[374272949,1753261852382,-500.94082614,0.00024296,9]
[374272950,1753261852392,-642.0,0.000243,2]
[374272951,1753261852401,-501.55083001,0.00024327,9]
[374272952,1753261852410,-155.919314,0.00024333,2]
[374272953,1753261852419,-155.919314,0.00024333,2]
[374272954,1753261852429,-713.22,0.00024383,2]
[374272955,1753261852438,-598.54,0.00024383,2]
[374272956,1753261852449,-460.0,0.00024383,2]
[374272957,1753261852459,-2601.93,0.00024383,2]
[374272958,1753261852469,-434.15977172,0.00024383,2]
[374272959,1753261852479,-912.03,0.00024383,2]
[374272960,1753261852489,-935.55,0.00024383,2]
[374272961,1753261852498,-460.0,0.00024383,2]
[374272962,1753261852508,-460.0,0.00024383,2]
[374272963,1753261852517,-1380.08,0.00024383,2]
[374272964,1753261852527,-1381.88,0.00024383,2]
[374272965,1753261852537,-472.92,0.00024383,2]
[374272966,1753261852546,-1043.81,0.00024383,2]
[374272967,1753261852557,-2133.29,0.00024383,2]
[374272968,1753261852568,-2580.6,0.00024383,2]
[374272969,1753261852578,-1283.57,0.00024383,2]
[374272970,1753261852587,-969.48,0.00024383,2]
[374272971,1753261852595,-929.2,0.00024383,2]
[374272972,1753261852605,-201.91259613,0.00024384,2]
[374272973,1753261852614,-453.0,0.00024384,2]
[374272974,1753261852623,-151.0,0.00024384,2]
[374272975,1753261852631,-151.0,0.00024384,2]
[374272976,1753261852640,-500.0,0.00024384,2]
[374272977,1753261852649,-500.0,0.00024384,2]
[374272978,1753261852658,-500.0,0.00024384,2]
[374272979,1753261852667,-151.0,0.00024384,2]
[374272980,1753261852676,-500.0,0.00024384,2]
[374272981,1753261852686,-1328.61648933,0.000244,2]
[374272982,1753261852695,-3198.88429827,0.000244,2]
[374272983,1753261852704,-987.30247237,0.000244,2]
[374272984,1753261852714,-3923.37858609,0.00024418,2]
[374272985,1753261852723,-164.861367,0.0002442,7]
[374272986,1753261852733,-164.861367,0.0002442,7]
[374272987,1753261852742,-263.91794536,0.00024438,2]
[374272988,1753261852751,-1046.487204,0.0002444,5]
[374272989,1753261852760,-1000.0,0.0002446,5]
[374272990,1753261852769,-155.919314,0.00024468,10]
[374272991,1753261852778,-155.919314,0.00024468,10]
[374272992,1753261852787,-500.0,0.00024473,2]
[374272993,1753261852796,-500.0,0.00024473,2]
[374272994,1753261852805,-505.11833627,0.00024473,2]
[374272995,1753261852813,-501.10459567,0.00024473,2]
[374272996,1753261852822,-500.0,0.00024473,2]
[374272997,1753261852831,-187.896896,0.00024473,7]
[374272998,1753261852841,-187.896896,0.00024473,7]
[374272999,1753261852850,-168.0,0.00024476,2]
[374273000,1753261852860,-151.0,0.00024478,7]
[374273001,1753261852870,-151.0,0.00024478,7]
[374273002,1753261852879,-151.0,0.00024478,7]
[374273003,1753261853003,-151.0,0.00024478,7]
[374273004,1753261853013,-151.0,0.00024478,7]
[374273005,1753261853023,-151.0,0.00024478,7]
[374273006,1753261853032,-3198.88429821,0.00024479,2]
[374273007,1753261853042,-1000.0,0.0002448,5]
[374273008,1753261853051,-160.0,0.00024493,8]
[374273009,1753261853060,-151.0,0.00024496,7]
[374273010,1753261853070,-151.0,0.00024496,7]
[374273011,1753261853079,-151.0,0.00024496,7]
[374273012,1753261853088,-605.64437,0.00024496,7]
[374273013,1753261853097,-605.64437,0.00024496,7]
[374273014,1753261853106,-466.593558,0.00024496,7]
[374273015,1753261853118,-466.593558,0.00024496,7]
[374273016,1753261853129,-160.31443999,0.00024499,2]
[374273017,1753261853138,-10371.75505722,0.000245,2]
[374273018,1753261853147,-30978.44411882,0.000245,4]
[374273019,1753261853306,-249.993024,0.000199,2]
[374273021,1753262377985,-150.0,0.00018795,2]
[374273022,1753262378005,-500.0,0.00019173,2]
[374273023,1753262378025,-870.0,0.00019177,2]
[374273024,1753262378046,-300.0,0.00019177,2]
[374273025,1753262378067,-460.0,0.00019178,2]
[374273026,1753262378091,-460.0,0.00019178,2]
[374273027,1753262378112,-460.0,0.00019178,2]
[374273028,1753262378134,-166.16714709,0.00019178,2]
[374273029,1753262378157,-460.0,0.00019178,2]
[374273030,1753262378178,-460.0,0.00019178,2]
[374273031,1753262378199,-460.0,0.00019178,2]
[374273032,1753262378221,-460.0,0.00019178,2]
[374273033,1753262378244,-460.0,0.00019178,2]
[374273034,1753262378269,-460.0,0.00019178,2]
[374273035,1753262378299,-460.0,0.00019178,2]
[374273036,1753262378323,-460.0,0.00019178,2]
[374273037,1753262378346,-462.06729288,0.00019178,2]
[374273038,1753262378375,-460.0,0.00019178,2]
[374273039,1753262378397,-559.34486732,0.00019178,2]
[374273040,1753262378420,-468.04502299,0.00019178,2]
[374273041,1753262378441,-460.0,0.00019178,2]
[374273042,1753262378463,-460.0,0.00019178,2]
[374273043,1753262378484,-460.0,0.00019178,2]
[374273044,1753262378505,-460.0,0.00019178,2]
[374273045,1753262378526,-460.0,0.00019178,2]
[374273046,1753262378546,-460.0,0.00019178,2]
[374273047,1753262378566,-460.0,0.00019178,2]
[374273048,1753262378587,-460.0,0.00019178,2]
[374273049,1753262378611,-477.59422645,0.00019178,2]
[374273050,1753262378633,-460.0,0.00019178,2]
[374273051,1753262378653,-460.0,0.00019178,2]
[374273052,1753262378675,-460.0,0.00019178,2]
[374273053,1753262378695,-460.0,0.00019178,2]
[374273054,1753262378716,-460.0,0.00019178,2]
[374273055,1753262378736,-460.0,0.00019178,2]
[374273056,1753262378755,-460.0,0.00019178,2]
[374273057,1753262378777,-500.0,0.00019178,2]
[374273058,1753262378798,-460.0,0.00019178,2]
[374273059,1753262378819,-460.0,0.00019178,2]
[374273060,1753262378842,-460.0,0.00019178,2]
[374273061,1753262378863,-460.0,0.00019178,2]
[374273062,1753262378884,-460.0,0.00019178,2]
[374273063,1753262378906,-460.0,0.00019178,2]
[374273064,1753262378927,-460.0,0.00019178,2]
[374273065,1753262378949,-396.62405628,0.00019178,2]
[374273066,1753262378970,-460.0,0.00019178,2]
[374273067,1753262378992,-460.0,0.00019178,2]
[374273068,1753262379015,-460.0,0.00019178,2]
[374273069,1753262379037,-460.0,0.00019178,2]
[374273070,1753262379059,-460.0,0.00019178,2]
[374273071,1753262379080,-460.0,0.00019178,2]
[374273072,1753262379100,-460.0,0.00019178,2]
[374273073,1753262379120,-460.0,0.00019178,2]
[374273074,1753262379140,-420.0,0.00019178,2]
[374273075,1753262379160,-341.20887599,0.00019178,2]
[374273076,1753262379180,-460.0,0.00019178,2]
[374273077,1753262379201,-460.0,0.00019178,2]
[374273078,1753262379222,-460.0,0.00019178,2]
[374273079,1753262379241,-460.0,0.00019178,2]
[374273080,1753262379266,-460.0,0.00019178,2]
[374273081,1753262379291,-460.0,0.00019178,2]
[374273082,1753262379313,-460.0,0.00019178,2]
[374273083,1753262379334,-460.0,0.00019178,2]
[374273084,1753262379360,-460.0,0.00019178,2]
[374273085,1753262379381,-460.0,0.00019178,2]
[374273086,1753262379403,-460.0,0.00019178,2]
[374273087,1753262379425,-460.0,0.00019178,2]
[374273088,1753262379446,-460.0,0.00019178,2]
[374273089,1753262379466,-460.0,0.00019178,2]
[374273090,1753262379488,-460.0,0.00019178,2]
[374273091,1753262379514,-460.0,0.00019178,2]
[374273092,1753262379535,-460.0,0.00019178,2]
[374273093,1753262379556,-460.0,0.00019178,2]
[374273094,1753262379577,-391.78928493,0.00019178,2]
[374273095,1753262379601,-460.0,0.00019178,2]
[374273096,1753262379624,-460.0,0.00019178,2]
[374273097,1753262379645,-460.0,0.00019178,2]
[374273098,1753262379665,-460.0,0.00019178,2]
[374273099,1753262379686,-460.0,0.00019178,2]
[374273100,1753262379708,-460.0,0.00019178,2]
[374273101,1753262379730,-599.79484754,0.00019178,2]
[374273102,1753262379751,-460.0,0.00019178,2]
[374273103,1753262379773,-460.0,0.00019178,2]
[374273104,1753262379793,-460.0,0.00019178,2]
[374273105,1753262379814,-460.0,0.00019178,2]
[374273106,1753262379834,-460.0,0.00019178,2]
[374273107,1753262379854,-460.0,0.00019178,2]
[374273108,1753262379876,-460.0,0.00019178,2]
[374273109,1753262379897,-460.0,0.00019178,2]
[374273110,1753262379918,-460.0,0.00019178,2]
[374273111,1753262379938,-460.0,0.00019178,2]
[374273112,1753262379957,-460.0,0.00019178,2]
[374273113,1753262379978,-460.0,0.00019178,2]
[374273114,1753262380000,-460.0,0.00019178,2]
[374273115,1753262380022,-998.57,0.00019178,2]
[374273116,1753262380043,-460.0,0.00019178,2]
[374273117,1753262380064,-460.0,0.00019178,2]
[374273118,1753262380088,-460.0,0.00019178,2]
[374273119,1753262380113,-565.39,0.00019178,2]
[374273120,1753262380133,-460.0,0.00019178,2]
[374273121,1753262380154,-365.35570083,0.00019178,2]
[374273122,1753262380175,-460.0,0.00019178,2]
[374273123,1753262380197,-460.0,0.00019178,2]
[374273124,1753262380217,-460.0,0.00019178,2]
[374273125,1753262380236,-459.42960073,0.00019178,2]
[374273126,1753262380258,-460.0,0.00019178,2]
[374273127,1753262380284,-460.0,0.00019178,2]
[374273128,1753262380307,-460.0,0.00019178,2]
[374273129,1753262380329,-598.1181684,0.00019178,2]
[374273130,1753262380350,-460.0,0.00019178,2]
[374273131,1753262380378,-460.0,0.00019178,2]
[374273132,1753262380399,-460.0,0.00019178,2]
[374273133,1753262380420,-217.80732844,0.00019178,2]
[374273134,1753262380445,-1333.93,0.00019178,2]
[374273135,1753262380466,-460.0,0.00019178,2]
[374273136,1753262380487,-460.0,0.00019178,2]
[374273137,1753262380509,-1002.01,0.00019178,2]
[374273138,1753262380531,-460.0,0.00019178,2]
[374273139,1753262380551,-460.0,0.00019178,2]
[374273140,1753262380571,-193.0448841,0.00019178,2]
[374273141,1753262380593,-460.0,0.00019178,2]
[374273142,1753262380614,-460.0,0.00019178,2]
[374273143,1753262380635,-460.0,0.00019178,2]
[374273144,1753262380657,-460.0,0.00019178,2]
[374273145,1753262380834,-460.0,0.00019178,2]
[374273146,1753262380859,-460.0,0.00019178,2]
[374273147,1753262380880,-472.692786,0.00019178,2]
[374273148,1753262380902,-669.28,0.00019178,2]
[374273149,1753262380924,-424.35409348,0.00019178,2]
[374273150,1753262380947,-1484.57,0.00019178,2]
[374273151,1753262380971,-460.0,0.00019178,2]
[374273152,1753262380992,-460.0,0.00019178,2]
[374273153,1753262381013,-460.0,0.00019178,2]
[374273154,1753262381034,-460.0,0.00019178,2]
[374273155,1753262381055,-460.0,0.00019178,2]
[374273156,1753262381076,-460.0,0.00019178,2]
[374273157,1753262381097,-460.0,0.00019178,2]
[374273158,1753262381119,-695.27,0.00019178,2]
[374273159,1753262381141,-460.0,0.00019178,2]
[374273160,1753262381163,-460.0,0.00019178,2]
[374273161,1753262381185,-460.0,0.00019178,2]
[374273162,1753262381207,-460.0,0.00019178,2]
[374273163,1753262381227,-1178.87,0.00019178,2]
[374273164,1753262381250,-2211.04,0.00019178,2]
[374273165,1753262381272,-460.0,0.00019178,2]
[374273166,1753262381299,-460.0,0.00019178,2]
[374273167,1753262381321,-323.73824741,0.00019178,2]
[374273168,1753262381341,-460.0,0.00019178,2]
[374273169,1753262381364,-460.0,0.00019178,2]
[374273170,1753262381385,-460.0,0.00019178,2]
[374273171,1753262381408,-1272.83,0.00019448,2]
[374273172,1753262381429,-646.96,0.00019448,2]
[374273173,1753262381451,-503.32,0.00019448,2]
[374273174,1753262381474,-460.0,0.00019451,2]
[374273175,1753262381499,-500.0,0.00019451,2]
[374273176,1753262381522,-500.0,0.00019451,2]
[374273177,1753262381542,-460.0,0.00019451,2]
[374273178,1753262381566,-460.0,0.00019451,2]
[374273179,1753262381586,-159.13280513,0.00019451,2]
[374273180,1753262381608,-460.0,0.00019452,2]
[374273181,1753262381630,-460.0,0.00019452,2]
[374273182,1753262381651,-460.0,0.00019452,2]
[374273183,1753262381672,-460.0,0.00019452,2]
[374273184,1753262381695,-460.0,0.00019452,2]
[374273185,1753262381716,-460.0,0.00019452,2]
[374273186,1753262381738,-460.0,0.00019452,2]
[374273187,1753262381759,-364.65076401,0.00019452,2]
[374273188,1753262525073,411.334156,0.00013699,2]
[374273190,1753262590343,150.0,0.00016653,2]
[374273191,1753262667332,150.0,0.00016721,2]
[374273193,1753262841268,-150.0,0.00018657,2]
[374273194,1753262841288,-1085.27329783,0.00018927,2]
[374273195,1753262841309,-298.22694574,0.00019078,2]
[374273196,1753262841330,-300.0,0.00019177,2]
[374273197,1753262841351,-460.0,0.00019178,2]
[374273198,1753262841371,-460.0,0.00019178,2]
[374273199,1753262841392,-460.0,0.00019178,2]
[374273200,1753262841411,-460.0,0.00019178,2]
[374273201,1753262841432,-460.0,0.00019178,2]
[374273202,1753262841452,-460.0,0.00019178,2]
[374273203,1753262841472,-460.0,0.00019178,2]
[374273204,1753262841492,-460.0,0.00019178,2]
[374273205,1753262841514,-460.0,0.00019178,2]
[374273206,1753262841535,-253.97624258,0.00019178,2]
[374273207,1753262841558,-460.0,0.00019178,2]
[374273208,1753262841580,-460.0,0.00019178,2]
[374273209,1753262841601,-460.0,0.00019178,2]
[374273210,1753262841621,-460.0,0.00019178,2]
[374273211,1753262841643,-460.0,0.00019178,2]
[374273212,1753262841664,-460.0,0.00019178,2]
[374273213,1753262841684,-460.0,0.00019178,2]
[374273214,1753262841708,-1845.39,0.00019178,2]
[374273215,1753262841730,-460.0,0.00019178,2]
[374273216,1753262841749,-460.0,0.00019178,2]
[374273217,1753262841770,-460.0,0.00019178,2]
[374273218,1753262841790,-460.0,0.00019178,2]
[374273219,1753262841810,-460.0,0.00019178,2]
[374273220,1753262841830,-460.0,0.00019178,2]
[374273221,1753262841849,-200.59884511,0.00019178,2]
[374273222,1753262841869,-424.02858638,0.00019178,2]
[374273223,1753262841890,-460.0,0.00019178,2]
[374273224,1753262841912,-620.0,0.00019178,2]
[374273225,1753262841931,-460.0,0.00019178,2]
[374273226,1753262841952,-460.0,0.00019178,2]
[374273227,1753262841973,-460.0,0.00019178,2]
[374273228,1753262841994,-460.0,0.00019178,2]
[374273229,1753262842016,-460.0,0.00019178,2]
[374273230,1753262842037,-460.0,0.00019178,2]
[374273231,1753262842059,-460.0,0.00019178,2]
[374273232,1753262842080,-460.0,0.00019178,2]
[374273233,1753262842103,-460.0,0.00019178,2]
[374273234,1753262842123,-599.0204205,0.00019178,2]
[374273235,1753262842144,-460.0,0.00019178,2]
[374273236,1753262842166,-460.0,0.00019178,2]
[374273237,1753262842187,-460.0,0.00019178,2]
[374273238,1753262842207,-479.33626948,0.00019178,2]
[374273239,1753262842231,-460.0,0.00019178,2]
[374273240,1753262842254,-675.93,0.00019178,2]
[374273241,1753262842275,-460.0,0.00019178,2]
[374273242,1753262842296,-463.0408097,0.00019178,2]
[374273243,1753262842316,-460.0,0.00019178,2]
[374273244,1753262842338,-460.0,0.00019178,2]
[374273245,1753262842361,-460.0,0.00019178,2]
[374273246,1753262842381,-460.0,0.00019178,2]
[374273247,1753262842401,-460.0,0.00019178,2]
[374273248,1753262842422,-460.0,0.00019178,2]
[374273249,1753262842442,-460.0,0.00019178,2]
[374273250,1753262842465,-1244.85,0.00019178,2]
[374273251,1753262842486,-460.0,0.00019178,2]
[374273252,1753262842507,-460.0,0.00019178,2]
[374273253,1753262842527,-460.0,0.00019178,2]
[374273254,1753262842550,-460.0,0.00019178,2]
[374273255,1753262842572,-460.0,0.00019178,2]
[374273256,1753262842593,-460.0,0.00019178,2]
[374273257,1753262842613,-1524.84,0.00019178,2]
[374273258,1753262842636,-460.0,0.00019178,2]
[374273259,1753262842655,-460.0,0.00019178,2]
[374273260,1753262842679,-1722.79,0.00019178,2]
[374273261,1753262842700,-460.0,0.00019178,2]
[374273262,1753262842720,-460.0,0.00019178,2]
[374273263,1753262842742,-797.63,0.00019178,2]
[374273264,1753262842765,-460.0,0.00019178,2]
[374273265,1753262842787,-2660.98,0.00019178,2]
[374273266,1753262842809,-460.0,0.00019178,2]
[374273267,1753262842830,-460.0,0.00019178,2]
[374273268,1753262842849,-460.0,0.00019178,2]
[374273269,1753262842870,-460.0,0.00019178,2]
[374273270,1753262842893,-1493.61,0.00019178,2]
[374273271,1753262842914,-460.0,0.00019178,2]
[374273272,1753262842934,-460.0,0.00019178,2]
[374273273,1753262842954,-460.0,0.00019178,2]
[374273274,1753262842973,-561.73503318,0.00019178,2]
[374273275,1753262842994,-460.0,0.00019178,2]
[374273276,1753262843015,-50000.0,0.00019178,2]
[374273277,1753262843035,-11060.97333319,0.00019329,2]
[374273278,1753262843061,-1028.44,0.00019448,2]
[374273279,1753262843083,-460.0,0.00019448,2]
[374273280,1753262843105,-826.74,0.00019448,2]
[374273281,1753262843126,-1329.22,0.00019448,2]
[374273282,1753262843148,-766.09,0.00019448,2]
[374273283,1753262843323,-460.0,0.00019448,2]
[374273284,1753262843345,-339.20012688,0.00019451,2]
[374273285,1753262843367,-460.0,0.00019451,2]
[374273286,1753262843387,-460.0,0.00019451,2]
[374273287,1753262843407,-175.43802794,0.00019451,2]
[374273288,1753262843428,-460.0,0.00019451,2]
[374273289,1753262843447,-460.0,0.00019451,2]
[374273290,1753262843467,-460.0,0.00019451,2]
[374273291,1753262843487,-460.0,0.00019451,2]
[374273292,1753262843508,-460.0,0.00019451,2]
[374273293,1753262843530,-460.0,0.00019451,2]
[374273294,1753262843559,-460.0,0.00019451,2]
[374273295,1753262843581,-460.0,0.00019451,2]
[374273296,1753262843601,-460.0,0.00019451,2]
[374273297,1753262843624,-460.0,0.00019451,2]
[374273298,1753262843645,-460.0,0.00019451,2]
[374273299,1753262843665,-460.0,0.00019451,2]
[374273300,1753262843686,-460.0,0.00019451,2]
[374273301,1753262843707,-460.0,0.00019451,2]
[374273302,1753262843727,-460.0,0.00019451,2]
[374273303,1753262843747,-460.0,0.00019451,2]
[374273304,1753262843768,-460.0,0.00019451,2]
[374273305,1753262843788,-460.0,0.00019451,2]
[374273306,1753262843809,-460.0,0.00019451,2]
[374273307,1753262843828,-474.92865728,0.00019451,2]
[374273308,1753262843850,-460.0,0.00019451,2]
[374273309,1753262843872,-826.51,0.00019451,2]
[374273310,1753262843892,-460.0,0.00019451,2]
[374273311,1753262843915,-460.0,0.00019451,2]
[374273312,1753262843936,-390.47722841,0.00019451,2]
[374273313,1753262843956,-460.0,0.00019451,2]
[374273314,1753262843978,-460.0,0.00019451,2]
[374273315,1753262843999,-460.0,0.00019451,2]
[374273316,1753262844020,-242.42879818,0.00019451,2]
[374273317,1753262844041,-460.0,0.00019451,2]
[374273318,1753262844062,-460.0,0.00019451,2]
[374273319,1753262844082,-460.0,0.00019451,2]
[374273320,1753262844102,-460.0,0.00019451,2]
[374273321,1753262844123,-214.57871944,0.00019451,2]
[374273322,1753262844144,-460.0,0.00019451,2]
[374273323,1753262844165,-460.0,0.00019451,2]
[374273324,1753262844186,-460.0,0.00019451,2]
[374273325,1753262844208,-460.0,0.00019451,2]
[374273326,1753262844229,-460.0,0.00019451,2]
[374273327,1753262844250,-460.0,0.00019451,2]
[374273328,1753262844271,-460.0,0.00019451,2]
[374273329,1753262844292,-1889.52935804,0.00019451,2]
[374273330,1753262844313,-1889.52935804,0.00019451,2]
[374273331,1753262844335,-1889.52935804,0.00019451,2]
[374273332,1753262844356,-1889.52935804,0.00019451,2]
[374273333,1753262844377,-1889.52935804,0.00019451,2]
[374273334,1753262844398,-1889.52935804,0.00019451,2]
[374273335,1753262844418,-1889.52935804,0.00019451,2]
[374273336,1753262844439,-1889.52935804,0.00019451,2]
[374273337,1753262844460,-1889.52935804,0.00019451,2]
[374273338,1753262844481,-1889.52935804,0.00019451,2]
[374273339,1753262844503,-1889.52935804,0.00019451,2]
[374273340,1753262844525,-1889.52935804,0.00019451,2]
[374273341,1753262844548,-1889.52935804,0.00019451,2]
[374273342,1753262844569,-1889.52935804,0.00019451,2]
[374273343,1753262844596,-1889.52935804,0.00019451,2]
[374273344,1753262844618,-1889.52935804,0.00019451,2]
[374273345,1753262844641,-1889.52935804,0.00019451,2]
[374273346,1753262844665,-1889.52935804,0.00019451,2]
[374273347,1753262844687,-1889.52935804,0.00019451,2]
[374273348,1753262844709,-1889.52935804,0.00019451,2]
[374273349,1753262844731,-1889.52935804,0.00019451,2]
[374273350,1753262844752,-1889.52935804,0.00019451,2]
[374273351,1753262844774,-1889.52935804,0.00019451,2]
[374273352,1753262844795,-1889.52935804,0.00019451,2]
[374273353,1753262844816,-1889.52935804,0.00019451,2]
[374273354,1753262844838,-1889.52935804,0.00019451,2]
[374273355,1753262844859,-1889.52935804,0.00019451,2]
[374273356,1753262844881,-1889.52935804,0.00019451,2]
[374273357,1753262844901,-1889.52935804,0.00019451,2]
[374273358,1753262844922,-1889.52935804,0.00019451,2]
[374273359,1753262844943,-1889.52935804,0.00019451,2]
[374273360,1753262844964,-1889.52935804,0.00019451,2]
[374273361,1753262844985,-1889.52935804,0.00019451,2]
[374273362,1753262845007,-1889.52935804,0.00019451,2]
[374273363,1753262845029,-1889.52935804,0.00019451,2]
[374273364,1753262845050,-1889.52935804,0.00019451,2]
[374273365,1753262845072,-1889.52935804,0.00019451,2]
[374273366,1753262845093,-1889.52935804,0.00019451,2]
[374273367,1753262845115,-1889.52935804,0.00019451,2]
[374273368,1753262845139,-1889.52935804,0.00019451,2]
[374273369,1753262845162,-1889.52935804,0.00019451,2]
[374273370,1753262845183,-1889.52935804,0.00019451,2]
[374273371,1753262845204,-1889.52935804,0.00019451,2]
[374273372,1753262845225,-1889.52935804,0.00019451,2]
[374273373,1753262845247,-1889.52935804,0.00019451,2]
[374273374,1753262845269,-1889.52935804,0.00019451,2]
[374273375,1753262845291,-1889.52935804,0.00019451,2]
[374273376,1753262845313,-1889.52935804,0.00019451,2]
[374273377,1753262845335,-1889.52935804,0.00019451,2]